[Event "*** Titled Tuesday 3|2 Blitz (Late)"]
[Site "Chess.com"]
[Date "2016.11.01"]
[Round "3"]
[White "Rating-Schmating"]
[Black "Kubas1010"]
[Result "1-0"]
[WhiteElo "2245"]
[BlackElo "2409"]
[TimeControl "180+2"]
[EndTime "17:37:38 PDT"]
[Termination "Rating-Schmating won by resignation"]

1. e4 {[%clk 0:03:01.9]} 1... e5 {[%clk 0:02:59.5]} 2. Nf3 {[%clk 0:03:00.6]}
2... Nc6 {[%clk 0:03:00.4]} 3. d4 {[%clk 0:03:01.6]} 3... exd4 {[%clk
0:03:01.3]} 4. Nxd4 {[%clk 0:03:02.9]} 4... g6 {[%clk 0:03:02.9]} 5. Nc3 {[%clk
0:02:58.9]} 5... Bg7 {[%clk 0:03:03.9]} 6. Be3 {[%clk 0:03:00.2]} 6... Nf6
{[%clk 0:03:05.1]} 7. Be2 {[%clk 0:02:59.9]} 7... O-O {[%clk 0:03:06.1]} 8. O-O
{[%clk 0:03:00.8]} 8... Re8 {[%clk 0:03:07.7]} 9. f3 {[%clk 0:03:01.4]} 9... d5
{[%clk 0:03:08.2]} 10. Nxc6 {[%clk 0:03:00.9]} 10... bxc6 {[%clk 0:03:09.1]} 11.
Qd2 {[%clk 0:02:49.2]} 11... Qe7 {[%clk 0:02:49]} 12. Bg5 {[%clk 0:02:42.8]}
12... dxe4 {[%clk 0:02:48.1]} 13. fxe4 {[%clk 0:02:31.8]} 13... Nxe4 {[%clk
0:02:46.4]} 14. Nxe4 {[%clk 0:02:21]} 14... Qxe4 {[%clk 0:02:47]} 15. Bf3 {[%clk
0:02:20]} 15... Qd4+ {[%clk 0:02:47.5]} 16. Qxd4 {[%clk 0:02:21]} 16... Bxd4+
{[%clk 0:02:49.4]} 17. Kh1 {[%clk 0:02:22.9]} 17... Bb7 {[%clk 0:02:44.4]} 18.
c3 {[%clk 0:02:23.9]} 18... Be5 {[%clk 0:02:44.3]} 19. Rad1 {[%clk 0:02:23.7]}
19... f6 {[%clk 0:02:43.3]} 20. Bh4 {[%clk 0:02:17.4]} 20... Rad8 {[%clk
0:02:42.4]} 21. Bf2 {[%clk 0:02:14.1]} 21... a5 {[%clk 0:02:41.1]} 22. g3 {[%clk
0:02:13.6]} 22... Kf7 {[%clk 0:02:35.9]} 23. Kg2 {[%clk 0:02:14.3]} 23... a4
{[%clk 0:02:31]} 24. Bc5 {[%clk 0:02:14.4]} 24... Ba6 {[%clk 0:02:29.7]} 25.
Rfe1 {[%clk 0:02:12.1]} 25... Bb5 {[%clk 0:02:28.7]} 26. c4 {[%clk 0:02:03.4]}
26... Bxc4 {[%clk 0:02:29.6]} 27. Bxc6 {[%clk 0:02:03.1]} 27... Rxd1 {[%clk
0:02:09.2]} 28. Bxe8+ {[%clk 0:01:50.5]} 28... Kxe8 {[%clk 0:02:11.1]} 29. Rxd1
{[%clk 0:01:51.9]} 29... Bxa2 {[%clk 0:02:09.7]} 30. Bd4 {[%clk 0:01:50.4]}
30... Ke7 {[%clk 0:02:09.9]} 31. Bxe5 {[%clk 0:01:47.5]} 31... fxe5 {[%clk
0:02:11]} 32. Kf3 {[%clk 0:01:47.7]} 32... Bb3 {[%clk 0:02:06.1]} 33. Rd2 {[%clk
0:01:47.5]} 33... Ke6 {[%clk 0:02:06]} 34. Ke4 {[%clk 0:01:47.4]} 34... c6
{[%clk 0:02:00.2]} 35. g4 {[%clk 0:01:41.6]} 35... Bd5+ {[%clk 0:02:00.4]} 36.
Ke3 {[%clk 0:01:43.1]} 36... Kd6 {[%clk 0:01:58.7]} 37. Rf2 {[%clk 0:01:42.1]}
37... Ke7 {[%clk 0:01:52.5]} 38. h4 {[%clk 0:01:41.2]} 38... Be6 {[%clk
0:01:51.4]} 39. Ke4 {[%clk 0:01:38.3]} 39... Bxg4 {[%clk 0:01:50.5]} 40. Kxe5
{[%clk 0:01:39]} 40... Bf5 {[%clk 0:01:47.5]} 41. Rd2 {[%clk 0:01:35.9]} 41...
Be6 {[%clk 0:01:43.8]} 42. Rd4 {[%clk 0:01:32]} 42... Bb3 {[%clk 0:01:44.5]} 43.
Rb4 {[%clk 0:01:33.1]} 43... c5 {[%clk 0:01:43.2]} 44. Rb7+ {[%clk 0:01:33.9]}
44... Kf8 {[%clk 0:01:44.6]} 45. Kf6 {[%clk 0:01:33]} 45... Ke8 {[%clk
0:01:42.8]} 46. Rxh7 {[%clk 0:01:32.4]} 46... c4 {[%clk 0:01:44.1]} 47. Ra7
{[%clk 0:01:31.5]} 47... Bc2 {[%clk 0:01:43.1]} 48. Rc7 {[%clk 0:01:31.3]} 48...
Bd3 {[%clk 0:01:41]} 49. Ke6 {[%clk 0:01:31]} 49... Kd8 {[%clk 0:01:42.3]} 50.
Ra7 {[%clk 0:01:30.1]} 50... Bc2 {[%clk 0:01:43]} 51. Kd5 {[%clk 0:01:30.5]}
51... Bb3 {[%clk 0:01:41]} 52. Kd4 {[%clk 0:01:30.5]} 52... Ke8 {[%clk
0:01:38.6]} 53. Rg7 {[%clk 0:01:31.1]} 53... Bc2 {[%clk 0:01:38.6]} 54. Kxc4
{[%clk 0:01:31.2]} 54... Kf8 {[%clk 0:01:40.1]} 55. Ra7 {[%clk 0:01:31.7]} 55...
Bb3+ {[%clk 0:01:40.9]} 56. Kd4 {[%clk 0:01:32.3]} 56... Kg8 {[%clk 0:01:42.2]}
57. Ke5 {[%clk 0:01:33.6]} 57... Kh8 {[%clk 0:01:41.9]} 58. Kf6 {[%clk
0:01:34.9]} 58... Bc2 {[%clk 0:01:42.9]} 59. Rc7 {[%clk 0:01:28.8]} 59... Bd3
{[%clk 0:01:41.3]} 60. Rc3 {[%clk 0:01:27.3]} 1-0

[Event "*** Titled Tuesday 3|2 Blitz (Late)"]
[Site "Chess.com"]
[Date "2016.11.01"]
[Round "3"]
[White "norwaytoadog"]
[Black "enfanterrible"]
[Result "0-1"]
[WhiteElo "1986"]
[BlackElo "2218"]
[TimeControl "180+2"]
[EndTime "17:37:44 PDT"]
[Termination "enfanterrible won on time"]

1. e4 {[%clk 0:03:01.9]} 1... d5 {[%clk 0:03:00.8]} 2. exd5 {[%clk 0:03:01.3]}
2... Qxd5 {[%clk 0:03:01.9]} 3. Nf3 {[%clk 0:03:01.5]} 3... Nf6 {[%clk
0:03:02.3]} 4. d4 {[%clk 0:03:00.3]} 4... Bg4 {[%clk 0:03:01.6]} 5. Be2 {[%clk
0:02:58.2]} 5... e6 {[%clk 0:03:02.7]} 6. O-O {[%clk 0:02:58.2]} 6... Nc6 {[%clk
0:03:03.2]} 7. c4 {[%clk 0:02:58]} 7... Qf5 {[%clk 0:03:01.9]} 8. Nc3 {[%clk
0:02:48.2]} 8... O-O-O {[%clk 0:03:02.8]} 9. Be3 {[%clk 0:02:45.8]} 9... Bc5
{[%clk 0:02:54.7]} 10. dxc5 {[%clk 0:02:38.7]} 10... Rxd1 {[%clk 0:02:54.7]} 11.
Rfxd1 {[%clk 0:02:39.2]} 11... Rd8 {[%clk 0:02:50.4]} 12. a3 {[%clk 0:02:31.7]}
12... Qc2 {[%clk 0:02:24]} 13. Rdc1 {[%clk 0:01:50.1]} 13... Qxb2 {[%clk
0:02:18.4]} 14. Ra2 {[%clk 0:01:24.8]} 14... Qb3 {[%clk 0:02:18.4]} 15. Nd2
{[%clk 0:01:02.4]} 15... Rxd2 {[%clk 0:02:19.3]} 16. Rxd2 {[%clk 0:01:00]} 16...
Bxe2 {[%clk 0:02:20.2]} 17. Nxe2 {[%clk 0:00:49.7]} 17... Qxa3 {[%clk
0:02:20.5]} 18. h3 {[%clk 0:00:38.7]} 18... a5 {[%clk 0:02:13.4]} 19. Rcd1
{[%clk 0:00:39.1]} 19... a4 {[%clk 0:02:14.2]} 20. Nd4 {[%clk 0:00:38.3]} 20...
Ne4 {[%clk 0:02:12.9]} 21. Nb5 {[%clk 0:00:29.3]} 21... Qb3 {[%clk 0:02:02.1]}
22. Rd7 {[%clk 0:00:17.8]} 22... Qxc4 {[%clk 0:01:38.9]} 23. Na7+ {[%clk
0:00:13.1]} 23... Kb8 {[%clk 0:01:40]} 24. Nxc6+ {[%clk 0:00:12.8]} 24... bxc6
{[%clk 0:01:41.4]} 25. Rd8+ {[%clk 0:00:09.1]} 25... Ka7 {[%clk 0:01:42.6]} 26.
R1d7 {[%clk 0:00:06.5]} 26... Kb7 {[%clk 0:01:36.9]} 27. Rxf7 {[%clk 0:00:04]}
27... a3 {[%clk 0:01:37.8]} 28. Rdd7 {[%clk 0:00:02.8]} 28... Ka6 {[%clk
0:00:54.7]} 29. Rxc7 {[%clk 0:00:03.5]} 29... Kb5 {[%clk 0:00:30.6]} 30. Rb7+
{[%clk 0:00:03.4]} 30... Ka4 {[%clk 0:00:31.8]} 31. Rf8 {[%clk 0:00:04]} 31...
Qa6 {[%clk 0:00:27.4]} 32. Rb6 {[%clk 0:00:03.5]} 32... Qa5 {[%clk 0:00:24.6]}
0-1

[Event "*** Titled Tuesday 3|2 Blitz (Late)"]
[Site "Chess.com"]
[Date "2016.11.01"]
[Round "3"]
[White "Boryboy"]
[Black "platy3"]
[Result "0-1"]
[WhiteElo "2429"]
[BlackElo "2682"]
[TimeControl "180+2"]
[EndTime "17:37:58 PDT"]
[Termination "platy3 won by resignation"]

1. d4 {[%clk 0:03:01.9]} 1... Nf6 {[%clk 0:03:00.7]} 2. Nf3 {[%clk 0:03:00.5]}
2... e6 {[%clk 0:03:01.8]} 3. g3 {[%clk 0:03:00.5]} 3... Be7 {[%clk 0:03:02.2]}
4. Bg2 {[%clk 0:03:00.9]} 4... O-O {[%clk 0:03:03.8]} 5. c4 {[%clk 0:03:02.1]}
5... d5 {[%clk 0:03:05.2]} 6. O-O {[%clk 0:03:03.7]} 6... dxc4 {[%clk
0:03:06.7]} 7. Ne5 {[%clk 0:03:05]} 7... Nc6 {[%clk 0:03:07.1]} 8. Bxc6 {[%clk
0:03:04.9]} 8... bxc6 {[%clk 0:03:08.8]} 9. Nxc6 {[%clk 0:03:06.3]} 9... Qe8
{[%clk 0:03:10.5]} 10. Nxe7+ {[%clk 0:03:08]} 10... Qxe7 {[%clk 0:03:11.8]} 11.
Qa4 {[%clk 0:03:09.8]} 11... e5 {[%clk 0:03:13]} 12. dxe5 {[%clk 0:03:11.7]}
12... Qxe5 {[%clk 0:03:14.1]} 13. Qxc4 {[%clk 0:03:13.5]} 13... Be6 {[%clk
0:03:15.6]} 14. Qd3 {[%clk 0:03:15.2]} 14... Rad8 {[%clk 0:02:39]} 15. Qe3
{[%clk 0:03:15]} 15... Qh5 {[%clk 0:02:39.1]} 16. f3 {[%clk 0:03:16.3]} 16...
Bc4 {[%clk 0:02:33]} 17. Qf2 {[%clk 0:03:14.1]} 17... Rfe8 {[%clk 0:02:21.9]}
18. Nc3 {[%clk 0:03:11.6]} 18... Nd5 {[%clk 0:01:57.7]} 19. Re1 {[%clk
0:01:51.9]} 19... Nb4 {[%clk 0:01:49.5]} 20. Rf1 {[%clk 0:01:32.9]} 20... Nd5
{[%clk 0:01:32.1]} 21. Re1 {[%clk 0:01:31]} 21... Nb4 {[%clk 0:01:18.5]} 22. Rf1
{[%clk 0:01:30.5]} 22... f6 {[%clk 0:01:19.9]} 23. Bf4 {[%clk 0:01:23.3]} 23...
Nd5 {[%clk 0:01:21.2]} 24. Rfe1 {[%clk 0:01:09.7]} 24... Nxc3 {[%clk 0:01:20.9]}
25. bxc3 {[%clk 0:01:09.5]} 25... Qa5 {[%clk 0:01:22.4]} 26. e4 {[%clk
0:01:05.8]} 26... Rd3 {[%clk 0:01:18.6]} 27. Rad1 {[%clk 0:01:06]} 27... Red8
{[%clk 0:01:13.2]} 28. Rxd3 {[%clk 0:01:04.8]} 28... Rxd3 {[%clk 0:01:15.1]} 29.
e5 {[%clk 0:01:06.4]} 29... g5 {[%clk 0:01:00.8]} 30. Bc1 {[%clk 0:00:58.7]}
30... fxe5 {[%clk 0:00:52.3]} 31. Bxg5 {[%clk 0:00:57.8]} 31... Qd5 {[%clk
0:00:53.4]} 32. f4 {[%clk 0:00:46.3]} 32... Rd2 {[%clk 0:00:34.5]} 33. Rxe5
{[%clk 0:00:47.2]} 33... Qd3 {[%clk 0:00:29.4]} 34. Re8+ {[%clk 0:00:29.1]}
34... Kf7 {[%clk 0:00:28.5]} 35. Re7+ {[%clk 0:00:25.6]} 35... Kf8 {[%clk
0:00:29.8]} 36. Qe1 {[%clk 0:00:27]} 36... Rd1 {[%clk 0:00:25.3]} 37. Re8+
{[%clk 0:00:27.2]} 37... Kf7 {[%clk 0:00:26.3]} 38. Re7+ {[%clk 0:00:28.4]}
38... Kg6 {[%clk 0:00:27.7]} 39. g4 {[%clk 0:00:21.6]} 39... Rxe1+ {[%clk
0:00:25.2]} 40. Rxe1 {[%clk 0:00:23.5]} 40... h5 {[%clk 0:00:23.8]} 0-1

[Event "*** Titled Tuesday 3|2 Blitz (Late)"]
[Site "Chess.com"]
[Date "2016.11.01"]
[Round "3"]
[White "RobertoJBM"]
[Black "chessking2151"]
[Result "1-0"]
[WhiteElo "2545"]
[BlackElo "2329"]
[TimeControl "180+2"]
[EndTime "17:38:00 PDT"]
[Termination "RobertoJBM won on time"]

1. d4 {[%clk 0:03:02]} 1... Nf6 {[%clk 0:03:00.6]} 2. Nf3 {[%clk 0:03:02.1]}
2... c5 {[%clk 0:03:01.1]} 3. e3 {[%clk 0:03:03]} 3... e6 {[%clk 0:02:58.8]} 4.
Bd3 {[%clk 0:03:03.2]} 4... Nc6 {[%clk 0:02:59.8]} 5. O-O {[%clk 0:03:04.1]}
5... b6 {[%clk 0:03:01.2]} 6. b3 {[%clk 0:03:05.3]} 6... Bb7 {[%clk 0:03:02.5]}
7. Bb2 {[%clk 0:03:06.8]} 7... Be7 {[%clk 0:03:00.7]} 8. Nbd2 {[%clk 0:03:07.6]}
8... O-O {[%clk 0:03:00.9]} 9. a3 {[%clk 0:03:08.9]} 9... d5 {[%clk 0:02:58]}
10. Qe2 {[%clk 0:03:08.8]} 10... Rc8 {[%clk 0:02:56.3]} 11. Ne5 {[%clk
0:03:09.7]} 11... Qc7 {[%clk 0:02:54.7]} 12. f4 {[%clk 0:03:09.9]} 12... Rfd8
{[%clk 0:02:55.5]} 13. g4 {[%clk 0:03:07.8]} 13... Na5 {[%clk 0:02:44.5]} 14. g5
{[%clk 0:03:04.4]} 14... Ne4 {[%clk 0:02:45.4]} 15. dxc5 {[%clk 0:02:50.2]}
15... bxc5 {[%clk 0:02:33.2]} 16. Nxe4 {[%clk 0:02:51]} 16... dxe4 {[%clk
0:02:33.8]} 17. Bb5 {[%clk 0:02:37.1]} 17... f6 {[%clk 0:02:29.5]} 18. gxf6
{[%clk 0:02:36.9]} 18... Bxf6 {[%clk 0:02:28.9]} 19. Rad1 {[%clk 0:02:34.9]}
19... Nc6 {[%clk 0:02:27.7]} 20. Nxc6 {[%clk 0:02:27.8]} 20... Bxc6 {[%clk
0:02:25.9]} 21. Bxf6 {[%clk 0:02:27]} 21... gxf6 {[%clk 0:02:05.7]} 22. Bc4
{[%clk 0:02:07.4]} 22... Bd5 {[%clk 0:02:03.3]} 23. f5 {[%clk 0:02:01.5]} 23...
Qf7 {[%clk 0:00:44.8]} 24. fxe6 {[%clk 0:01:59.7]} 24... Bxe6 {[%clk 0:00:42]}
25. Qg2+ {[%clk 0:01:59.9]} 25... Kh8 {[%clk 0:00:39.4]} 26. Qxe4 {[%clk
0:01:57.7]} 26... Bxc4 {[%clk 0:00:40.3]} 27. Qxc4 {[%clk 0:01:52.1]} 27... Qxc4
{[%clk 0:00:40.8]} 28. bxc4 {[%clk 0:01:52.9]} 28... Kg7 {[%clk 0:00:42.2]} 29.
Kf2 {[%clk 0:01:53.6]} 29... Kf7 {[%clk 0:00:42.3]} 30. Rd5 {[%clk 0:01:53.6]}
30... Rb8 {[%clk 0:00:35]} 31. Rfd1 {[%clk 0:01:53.8]} 31... Rxd5 {[%clk
0:00:35.8]} 32. Rxd5 {[%clk 0:01:52.1]} 32... Rb2 {[%clk 0:00:36.3]} 33. Rxc5
{[%clk 0:01:53]} 33... Rxc2+ {[%clk 0:00:37.6]} 34. Kf3 {[%clk 0:01:53.3]} 34...
Rxh2 {[%clk 0:00:36]} 35. Rc7+ {[%clk 0:01:54.3]} 35... Kg6 {[%clk 0:00:37.4]}
36. Rxa7 {[%clk 0:01:55.9]} 36... Rc2 {[%clk 0:00:38.3]} 37. Ra4 {[%clk
0:01:51.1]} 37... h5 {[%clk 0:00:39.2]} 38. Rb4 {[%clk 0:01:42.4]} 38... Kg5
{[%clk 0:00:21.4]} 39. Rb5+ {[%clk 0:01:30.5]} 39... f5 {[%clk 0:00:22.3]} 40.
e4 {[%clk 0:01:29.7]} 40... Rc3+ {[%clk 0:00:22]} 41. Ke2 {[%clk 0:01:30.1]}
41... Rxa3 {[%clk 0:00:21.8]} 42. Rxf5+ {[%clk 0:01:30.7]} 42... Kg4 {[%clk
0:00:23.4]} 43. Kd2 {[%clk 0:01:26.5]} 43... h4 {[%clk 0:00:23.8]} 44. Rf1
{[%clk 0:01:22.5]} 44... h3 {[%clk 0:00:22.3]} 45. c5 {[%clk 0:01:23.5]} 45...
Ra5 {[%clk 0:00:22.2]} 46. Rc1 {[%clk 0:01:18.8]} 46... h2 {[%clk 0:00:23]} 47.
c6 {[%clk 0:01:20.1]} 47... Rc5 {[%clk 0:00:22.2]} 48. Rxc5 {[%clk 0:01:20.5]}
48... h1=Q {[%clk 0:00:23.1]} 49. c7 {[%clk 0:01:20.4]} 49... Qh6+ {[%clk
0:00:21.5]} 50. Kc3 {[%clk 0:01:20.1]} 50... Qd6 {[%clk 0:00:22.3]} 51. c8=Q+
{[%clk 0:01:20.7]} 1-0

[Event "*** Titled Tuesday 3|2 Blitz (Late)"]
[Site "Chess.com"]
[Date "2016.11.01"]
[Round "3"]
[White "KNVB"]
[Black "DanielNaroditsky"]
[Result "0-1"]
[WhiteElo "2593"]
[BlackElo "2740"]
[TimeControl "180+2"]
[EndTime "17:38:32 PDT"]
[Termination "DanielNaroditsky won by resignation"]

1. d4 {[%clk 0:02:59.4]} 1... Nf6 {[%clk 0:03:00.1]} 2. c4 {[%clk 0:03:00.4]}
2... d6 {[%clk 0:03:01.8]} 3. Nc3 {[%clk 0:02:52.9]} 3... Nbd7 {[%clk
0:03:03.7]} 4. e4 {[%clk 0:02:54]} 4... e5 {[%clk 0:03:04.9]} 5. Nge2 {[%clk
0:02:55.5]} 5... g6 {[%clk 0:03:04.8]} 6. f3 {[%clk 0:02:55.7]} 6... Bg7 {[%clk
0:03:05.6]} 7. Be3 {[%clk 0:02:57.3]} 7... c6 {[%clk 0:03:06.9]} 8. Qd2 {[%clk
0:02:58.6]} 8... a6 {[%clk 0:03:06]} 9. d5 {[%clk 0:02:41.9]} 9... cxd5 {[%clk
0:03:06.3]} 10. cxd5 {[%clk 0:02:43.8]} 10... b5 {[%clk 0:03:07.9]} 11. g4
{[%clk 0:02:45.1]} 11... h5 {[%clk 0:03:07.3]} 12. g5 {[%clk 0:02:46.3]} 12...
Nh7 {[%clk 0:03:05.2]} 13. Rg1 {[%clk 0:02:47.2]} 13... Bb7 {[%clk 0:03:03.8]}
14. b3 {[%clk 0:02:41.1]} 14... O-O {[%clk 0:03:02.4]} 15. Ng3 {[%clk
0:02:38.5]} 15... Rc8 {[%clk 0:02:58.3]} 16. Be2 {[%clk 0:02:20.5]} 16... f6
{[%clk 0:02:54.3]} 17. gxf6 {[%clk 0:02:21.1]} 17... Qxf6 {[%clk 0:02:56.2]} 18.
Rc1 {[%clk 0:02:16.2]} 18... Rc7 {[%clk 0:02:40.4]} 19. Nd1 {[%clk 0:02:04.2]}
19... Rxc1 {[%clk 0:02:39.6]} 20. Qxc1 {[%clk 0:02:06.1]} 20... Rc8 {[%clk
0:02:41.1]} 21. Qd2 {[%clk 0:02:07.2]} 21... Kh8 {[%clk 0:02:14]} 22. Nf2 {[%clk
0:01:54.2]} 22... Qh4 {[%clk 0:02:15.1]} 23. Rg2 {[%clk 0:01:43.2]} 23... Bf6
{[%clk 0:02:13.3]} 24. Nf1 {[%clk 0:01:15.9]} 24... Ndf8 {[%clk 0:02:00.4]} 25.
Qb4 {[%clk 0:01:03.1]} 25... Be7 {[%clk 0:01:59.6]} 26. a4 {[%clk 0:01:03]}
26... Bd8 {[%clk 0:00:59.2]} 27. Qxd6 {[%clk 0:00:51.9]} 27... Ba5+ {[%clk
0:01:00.4]} 28. b4 {[%clk 0:00:51.9]} 28... Bc7 {[%clk 0:01:01.2]} 29. Qc5
{[%clk 0:00:36]} 29... Nd7 {[%clk 0:01:01.6]} 30. Qa7 {[%clk 0:00:26.9]} 30...
Bxd5 {[%clk 0:00:51.8]} 31. Qxa6 {[%clk 0:00:23.3]} 31... Ra8 {[%clk 0:00:41.8]}
32. Qxg6 {[%clk 0:00:21.1]} 32... Rg8 {[%clk 0:00:42.8]} 33. Qh6 {[%clk
0:00:13.4]} 33... Rxg2 {[%clk 0:00:42.6]} 34. exd5 {[%clk 0:00:14.9]} 34...
Qxb4+ {[%clk 0:00:43.2]} 35. Nd2 {[%clk 0:00:16]} 35... Rg1+ {[%clk 0:00:41.4]}
36. Bf1 {[%clk 0:00:16.9]} 36... bxa4 {[%clk 0:00:39.2]} 37. Qxh5 {[%clk
0:00:14.4]} 37... a3 {[%clk 0:00:35.9]} 38. Qe8+ {[%clk 0:00:14]} 38... Ndf8
{[%clk 0:00:37.6]} 39. Qa8 {[%clk 0:00:10.4]} 39... Ba5 {[%clk 0:00:39.2]} 40.
d6 {[%clk 0:00:10]} 40... a2 {[%clk 0:00:40.1]} 41. d7 {[%clk 0:00:06.4]} 41...
a1=Q+ {[%clk 0:00:41.2]} 42. Ke2 {[%clk 0:00:07.9]} 42... Qb5+ {[%clk
0:00:32.8]} 43. Nd3 {[%clk 0:00:08.8]} 43... Qxd7 {[%clk 0:00:28.3]} 44. Bxg1
{[%clk 0:00:08.1]} 44... Qc3 {[%clk 0:00:24.6]} 45. Ne4 {[%clk 0:00:05]} 45...
Qcxd3+ {[%clk 0:00:24.6]} 46. Kf2 {[%clk 0:00:06.6]} 46... Qc2+ {[%clk
0:00:24.1]} 47. Kg3 {[%clk 0:00:04.3]} 47... Qg7+ {[%clk 0:00:25.2]} 48. Kh3
{[%clk 0:00:05]} 48... Qxg1 {[%clk 0:00:21.9]} 0-1

[Event "*** Titled Tuesday 3|2 Blitz (Late)"]
[Site "Chess.com"]
[Date "2016.11.01"]
[Round "3"]
[White "BillieKimbah"]
[Black "tigra"]
[Result "0-1"]
[WhiteElo "2605"]
[BlackElo "2474"]
[TimeControl "180+2"]
[EndTime "17:38:36 PDT"]
[Termination "tigra won on time"]

1. d4 {[%clk 0:02:58.9]} 1... Nf6 {[%clk 0:02:58.5]} 2. Bf4 {[%clk 0:02:58.7]}
2... e6 {[%clk 0:02:57.1]} 3. e3 {[%clk 0:02:59.7]} 3... c5 {[%clk 0:02:58.2]}
4. Nd2 {[%clk 0:02:58.6]} 4... b6 {[%clk 0:02:59.4]} 5. Ngf3 {[%clk 0:02:58.2]}
5... Bb7 {[%clk 0:03:00.5]} 6. h3 {[%clk 0:02:59.8]} 6... Nc6 {[%clk 0:03:00.6]}
7. c3 {[%clk 0:02:59.2]} 7... d5 {[%clk 0:03:01.1]} 8. Bd3 {[%clk 0:03:00.2]}
8... Bd6 {[%clk 0:02:59]} 9. O-O {[%clk 0:03:00.9]} 9... Qc7 {[%clk 0:02:51.9]}
10. Bxd6 {[%clk 0:02:51.3]} 10... Qxd6 {[%clk 0:02:53.8]} 11. Qe2 {[%clk
0:02:52.3]} 11... O-O {[%clk 0:02:48]} 12. e4 {[%clk 0:02:50.2]} 12... Qe7
{[%clk 0:02:38.3]} 13. e5 {[%clk 0:02:45.2]} 13... Nd7 {[%clk 0:02:39]} 14. Rfe1
{[%clk 0:02:45.1]} 14... Rae8 {[%clk 0:02:34.3]} 15. Nf1 {[%clk 0:02:43.1]}
15... f6 {[%clk 0:02:32.1]} 16. exf6 {[%clk 0:02:41.2]} 16... Qxf6 {[%clk
0:02:33.1]} 17. Bb5 {[%clk 0:02:06.3]} 17... cxd4 {[%clk 0:01:52.8]} 18. Nxd4
{[%clk 0:02:01.3]} 18... e5 {[%clk 0:01:44.3]} 19. Nxc6 {[%clk 0:01:58.4]} 19...
Bxc6 {[%clk 0:01:46.2]} 20. Bxc6 {[%clk 0:01:55.5]} 20... Qxc6 {[%clk
0:01:46.9]} 21. Rad1 {[%clk 0:01:57]} 21... Nf6 {[%clk 0:01:30]} 22. Ne3 {[%clk
0:01:57.4]} 22... Qc5 {[%clk 0:01:12.9]} 23. Rf1 {[%clk 0:00:46.7]} 23... b5
{[%clk 0:00:58.4]} 24. b4 {[%clk 0:00:45.4]} 24... Qc6 {[%clk 0:00:58]} 25. Qd3
{[%clk 0:00:43.2]} 25... Rd8 {[%clk 0:00:56.4]} 26. Nf5 {[%clk 0:00:43.6]} 26...
Rfe8 {[%clk 0:00:56.2]} 27. Qg3 {[%clk 0:00:43.4]} 27... Qc7 {[%clk 0:00:50.8]}
28. Rfe1 {[%clk 0:00:42.2]} 28... Ne4 {[%clk 0:00:47.8]} 29. Qg4 {[%clk
0:00:32.9]} 29... Nxc3 {[%clk 0:00:47.9]} 30. Rd3 {[%clk 0:00:28.3]} 30... d4
{[%clk 0:00:43.8]} 31. Rg3 {[%clk 0:00:26.3]} 31... g6 {[%clk 0:00:34.5]} 32. h4
{[%clk 0:00:26.1]} 32... d3 {[%clk 0:00:34.8]} 33. h5 {[%clk 0:00:16.3]} 33...
d2 {[%clk 0:00:35.8]} 34. Rd1 {[%clk 0:00:17.1]} 34... Qc4 {[%clk 0:00:28.9]}
35. Qg5 {[%clk 0:00:15]} 35... Ne2+ {[%clk 0:00:27.9]} 36. Kh2 {[%clk
0:00:14.8]} 36... Nxg3 {[%clk 0:00:28.2]} 37. fxg3 {[%clk 0:00:13.9]} 37... Qe6
{[%clk 0:00:19.2]} 38. g4 {[%clk 0:00:03.7]} 38... Rf8 {[%clk 0:00:19.2]} 39.
Nh6+ {[%clk 0:00:02.3]} 39... Kg7 {[%clk 0:00:20]} 40. Nf5+ {[%clk 0:00:03.5]}
40... Kh8 {[%clk 0:00:19.8]} 41. Qh6 {[%clk 0:00:04.9]} 41... Qf6 {[%clk
0:00:15.4]} 42. hxg6 {[%clk 0:00:02.8]} 42... Qxg6 {[%clk 0:00:16.5]} 43. Qh3
{[%clk 0:00:03.6]} 43... Qg5 {[%clk 0:00:16.2]} 44. Qg3 {[%clk 0:00:04.5]} 44...
Qf4 {[%clk 0:00:17]} 0-1

[Event "*** Titled Tuesday 3|2 Blitz (Late)"]
[Site "Chess.com"]
[Date "2016.11.01"]
[Round "3"]
[White "superjem123"]
[Black "gmshanmeruga"]
[Result "1-0"]
[WhiteElo "2505"]
[BlackElo "2272"]
[TimeControl "180+2"]
[EndTime "17:38:41 PDT"]
[Termination "superjem123 won by resignation"]

1. c4 {[%clk 0:03:01.9]} 1... e5 {[%clk 0:02:58.8]} 2. g3 {[%clk 0:03:02.3]}
2... Nf6 {[%clk 0:02:59.7]} 3. Bg2 {[%clk 0:03:03.3]} 3... d5 {[%clk 0:02:58.2]}
4. cxd5 {[%clk 0:03:03.5]} 4... Nxd5 {[%clk 0:03:00.1]} 5. Nc3 {[%clk
0:03:04.7]} 5... Nb6 {[%clk 0:02:52.5]} 6. Nf3 {[%clk 0:03:03.8]} 6... Nc6
{[%clk 0:02:53.1]} 7. O-O {[%clk 0:03:04.4]} 7... Bd6 {[%clk 0:02:53.7]} 8. d3
{[%clk 0:03:05.4]} 8... O-O {[%clk 0:02:54.4]} 9. Be3 {[%clk 0:03:04.9]} 9...
Bg4 {[%clk 0:02:34.8]} 10. Rc1 {[%clk 0:03:02.4]} 10... f5 {[%clk 0:02:26.5]}
11. Na4 {[%clk 0:02:56.4]} 11... f4 {[%clk 0:02:23.3]} 12. Bc5 {[%clk
0:02:52.7]} 12... Be6 {[%clk 0:02:18.3]} 13. a3 {[%clk 0:02:45.7]} 13... Nxa4
{[%clk 0:02:15]} 14. Qxa4 {[%clk 0:02:47.6]} 14... Qf6 {[%clk 0:02:12.1]} 15.
Nd2 {[%clk 0:02:39.9]} 15... Bxc5 {[%clk 0:02:07.8]} 16. Rxc5 {[%clk 0:02:41]}
16... Nd4 {[%clk 0:02:06.3]} 17. Qd1 {[%clk 0:02:25.3]} 17... Bg4 {[%clk
0:02:03.5]} 18. f3 {[%clk 0:01:56.4]} 18... Bf5 {[%clk 0:01:59.1]} 19. b4 {[%clk
0:01:43.5]} 19... c6 {[%clk 0:01:56.7]} 20. Nc4 {[%clk 0:01:42.4]} 20... b6
{[%clk 0:01:41.3]} 21. Rxe5 {[%clk 0:01:42.7]} 21... b5 {[%clk 0:01:37.2]} 22.
gxf4 {[%clk 0:01:29.6]} 22... bxc4 {[%clk 0:01:35]} 23. dxc4 {[%clk 0:01:31.5]}
23... Rad8 {[%clk 0:01:32.3]} 24. e3 {[%clk 0:01:29]} 24... Ne6 {[%clk
0:01:28.9]} 25. Qa4 {[%clk 0:01:24.9]} 25... Rd2 {[%clk 0:01:10.3]} 26. Kh1
{[%clk 0:01:07.6]} 26... Qh4 {[%clk 0:00:57.3]} 27. Qxc6 {[%clk 0:00:58.5]}
27... Nd8 {[%clk 0:00:45.3]} 28. Qb5 {[%clk 0:00:19.3]} 28... Bh3 {[%clk
0:00:38.8]} 29. Rg5 {[%clk 0:00:20.3]} 29... Ne6 {[%clk 0:00:32.9]} 30. Rg3
{[%clk 0:00:19.4]} 30... Bxg2+ {[%clk 0:00:25.7]} 31. Rxg2 {[%clk 0:00:21.3]}
31... Rfd8 {[%clk 0:00:24.2]} 32. Rfg1 {[%clk 0:00:07.2]} 32... Rxg2 {[%clk
0:00:20.4]} 33. Rxg2 {[%clk 0:00:09.1]} 33... Rd1+ {[%clk 0:00:13.4]} 34. Rg1
{[%clk 0:00:10.5]} 34... Rxg1+ {[%clk 0:00:14.6]} 35. Kxg1 {[%clk 0:00:11.3]}
35... Qe1+ {[%clk 0:00:16.1]} 36. Kg2 {[%clk 0:00:12.8]} 36... Qe2+ {[%clk
0:00:12.7]} 37. Kg3 {[%clk 0:00:14.3]} 37... Qe1+ {[%clk 0:00:14.2]} 38. Kg4
{[%clk 0:00:14.7]} 38... h5+ {[%clk 0:00:12.4]} 39. Kf5 {[%clk 0:00:10.1]} 39...
Nf8 {[%clk 0:00:11.1]} 40. Qd5+ {[%clk 0:00:10.3]} 40... Kh7 {[%clk 0:00:12.5]}
41. Ke4 {[%clk 0:00:10.5]} 41... Qb1+ {[%clk 0:00:13.1]} 42. Qd3 {[%clk
0:00:11.8]} 42... Qa1 {[%clk 0:00:11.1]} 43. c5 {[%clk 0:00:12.2]} 43... Qf6
{[%clk 0:00:11.6]} 44. Kd5+ {[%clk 0:00:12.5]} 44... Kh8 {[%clk 0:00:12.9]} 45.
Qe4 {[%clk 0:00:13.1]} 45... Qf7+ {[%clk 0:00:13.8]} 46. Kd6 {[%clk 0:00:13.5]}
46... Qd7+ {[%clk 0:00:14.7]} 47. Ke5 {[%clk 0:00:15]} 47... Qe6+ {[%clk
0:00:14]} 48. Kd4 {[%clk 0:00:16.4]} 48... Qd7+ {[%clk 0:00:15.2]} 49. Qd5
{[%clk 0:00:17.3]} 49... Qf5 {[%clk 0:00:16.3]} 50. Qxf5 {[%clk 0:00:17.8]} 1-0